bitfinex/quotes_BTCUSD_20251219
["timestamp","ask_amount","ask_price","bid_price","bid_amount"]
[1766171999618,0.12773,87663.0,87646.0,0.01716953]
[1766171999817,0.12773,87663.0,87650.0,0.01140901]
[1766172000056,0.12773,87663.0,87652.0,0.01140875]
[1766172000263,0.12773,87663.0,87650.0,0.06845404]
[1766172000464,0.001098,87652.0,87646.0,0.00576]
[1766172000677,0.001098,87652.0,87645.0,0.02993457]
[1766172000836,0.57558,87647.0,87639.0,4.57e-06]
[1766172001049,0.00576,87649.0,87639.0,4.57e-06]
[1766172001445,0.06844481,87662.0,87642.0,0.05705026]
[1766172001657,0.00576,87660.0,87649.0,0.01140914]
[1766172001900,0.00576,87660.0,87651.0,0.05704379]
[1766172002014,0.64401851,87670.0,87651.0,0.01140888]
[1766172002215,0.00576,87669.0,87652.0,0.01140875]
[1766172002586,0.00576,87669.0,87651.0,0.01140888]
[1766172002587,0.57558,87668.0,87651.0,0.01140888]
[1766172002745,0.00576,87667.0,87650.0,0.01140901]
[1766172002951,0.01250701,87650.0,87639.0,4.57e-06]
[1766172003327,0.12197,87647.0,87639.0,4.57e-06]
[1766172003477,0.00576,87646.0,87639.0,4.57e-06]
[1766172005541,0.00576,87646.0,87640.0,0.01141031]
[1766172005751,0.59224,87664.0,87651.0,0.01140888]
[1766172005968,0.00576,87663.0,87652.0,0.08214963]
[1766172006151,0.00576,87663.0,87653.0,0.01140862]
[1766172006494,0.001098,87653.0,87638.0,0.04025865]
[1766172006740,0.001098,87653.0,87638.0,0.00576]
[1766172006741,0.75112,87652.0,87638.0,0.00576]
[1766172007254,0.75112,87652.0,87637.0,0.06846394]
[1766172007451,0.75112,87652.0,87637.0,0.0171707]
[1766172007924,0.75112,87652.0,87638.0,0.01141057]
[1766172008083,0.15888,87652.0,87638.0,0.06846343]
[1766172008285,0.16464,87652.0,87638.0,0.06846343]
[1766172008489,0.16464,87652.0,87638.0,0.01141057]
[1766172008686,0.01140732,87663.0,87643.0,0.01140992]
[1766172008935,0.17028706,87665.0,87642.0,0.56781]
[1766172008936,0.01140771,87660.0,87642.0,0.56781]
[1766172009132,0.01140758,87661.0,87642.0,0.01141005]
[1766172009297,0.01140771,87660.0,87642.0,0.01141005]
[1766172009499,0.01140758,87661.0,87642.0,0.01141005]
[1766172009815,0.15888,87651.0,87639.0,4.57e-06]
[1766172010017,0.15888,87650.0,87639.0,4.57e-06]
[1766172010314,0.15888,87650.0,87639.0,0.04026322]
[1766172010476,0.00576,87653.0,87641.0,0.01141018]
[1766172010774,0.00576,87653.0,87640.0,0.04025865]
[1766172011006,0.00576,87653.0,87641.0,0.04025865]
[1766172011210,0.00576,87653.0,87643.0,0.04025865]
[1766172011616,0.00576,87653.0,87644.0,0.04025865]
[1766172011791,0.00576,87653.0,87639.0,0.06102619]
[1766172011792,0.001098,87643.0,87639.0,4.57e-06]
[1766172012178,0.16464,87647.0,87639.0,4.57e-06]
[1766172012780,0.16284,87647.0,87639.0,4.57e-06]
[1766172013239,0.75508,87647.0,87639.0,4.57e-06]
[1766172014101,0.00024945,87660.0,87640.0,0.00576]
[1766172014272,0.01140823,87656.0,87640.0,0.00576]
[1766172014445,0.75688,87655.0,87640.0,0.01717031]
[1766172014627,0.75688,87655.0,87639.0,0.01141501]
[1766172014829,0.75688,87655.0,87640.0,0.01141031]
[1766172015036,0.75688,87655.0,87641.0,0.01141018]
[1766172015290,0.16464,87655.0,87640.0,0.06846126]
[1766172015482,0.00576,87655.0,87649.0,0.01140914]
[1766172015683,0.00024945,87660.0,87657.0,0.0114081]
[1766172015889,0.00024945,87660.0,87658.0,0.01369754]
[1766172016091,0.04568,87685.0,87672.0,0.01140615]
[1766172016294,0.04568,87685.0,87673.0,0.01369754]
[1766172016295,0.00576,87684.0,87673.0,0.01369754]
[1766172016879,0.001098,87673.0,87666.0,0.00576]
[1766172017094,0.001098,87673.0,87666.0,0.01716693]
[1766172017303,0.0003611,87673.0,87670.0,0.01140641]
[1766172017503,0.0003611,87673.0,87666.0,0.00576]
[1766172018681,0.001098,87666.0,87662.0,0.00576]
[1766172018888,0.001098,87666.0,87658.0,0.01369754]
[1766172019165,0.56933,87662.0,87644.0,0.05704877]
[1766172019366,0.80213,87662.0,87648.0,0.00576]
[1766172020060,0.80213,87662.0,87649.0,0.01140914]
[1766172020272,0.80789,87662.0,87649.0,0.01140914]
[1766172020451,0.80789,87662.0,87651.0,0.01140888]
[1766172020652,0.80789,87662.0,87652.0,0.01140875]
[1766172020854,0.80789,87662.0,87651.0,0.0570443]
[1766172021094,0.80789,87662.0,87616.0,0.08051731]
[1766172021095,0.01369754,87642.0,87616.0,0.08051731]
[1766172021301,0.00575999,87624.0,87616.0,0.00576]
[1766172021449,0.01369754,87622.0,87617.0,0.00576]
[1766172022211,0.56933,87650.0,87625.0,0.77761]
[1766172022374,0.56933,87649.0,87618.0,0.01369754]
[1766172022541,0.56933,87641.0,87619.0,0.06285304]
[1766172022739,0.01141135,87632.0,87616.0,0.01]
[1766172022979,0.56933,87636.0,87620.0,0.00576]
[1766172023495,0.2328,87639.0,87620.0,0.00576]
[1766172023651,0.2328,87639.0,87624.0,0.01141239]
[1766172023860,0.2328,87639.0,87623.0,0.01141252]
[1766172024149,0.06845807,87645.0,87621.0,0.06847626]
[1766172024150,0.01140927,87648.0,87629.0,0.01141174]
[1766172024317,0.01140927,87648.0,87630.0,0.00576]
[1766172024555,0.8024911,87650.0,87630.0,0.01717161]
[1766172024729,0.0003611,87650.0,87636.0,0.77761]
[1766172024894,0.0003611,87650.0,87637.0,0.00576]
[1766172025299,0.56933,87660.0,87637.0,0.00576]
[1766172025300,0.01140589,87674.0,87652.0,0.01140875]
[1766172025500,0.2328,87675.0,87654.0,0.01140849]
[1766172025868,0.01140589,87674.0,87653.0,0.00576]
[1766172026141,0.2328,87675.0,87661.0,0.01140758]
[1766172026379,0.2328,87675.0,87662.0,0.0058]
[1766172026712,0.2328,87687.0,87668.0,0.01140667]
[1766172026912,1.13988006,87729.0,87681.0,0.01369754]
[1766172026913,0.2328,87696.0,87681.0,0.01369754]
[1766172027131,0.2328,87696.0,87682.0,0.0058]
[1766172027309,0.2328,87696.0,87682.0,0.01720484]
[1766172027510,0.2328,87696.0,87682.0,0.0058]
[1766172028147,0.24420302,87696.0,87682.0,0.00587027]
[1766172028348,0.2328,87696.0,87682.0,0.00587027]
[1766172028726,0.2328,87706.0,87688.0,0.01140406]
[1766172028944,0.24420185,87705.0,87689.0,0.0058]
[1766172029172,0.80213,87706.0,87690.0,0.0058]
[1766172029372,0.80213,87706.0,87691.0,0.0058]
[1766172029373,0.2328,87706.0,87691.0,0.0058]
[1766172029552,0.2328,87706.0,87691.0,0.01720367]
[1766172029753,0.2328,87706.0,87691.0,0.0058]
[1766172029956,0.24420172,87706.0,87691.0,0.0058]
[1766172030140,0.01140198,87704.0,87691.0,0.0058]
[1766172030405,0.01140185,87705.0,87691.0,0.0058]
[1766172030770,0.2328,87686.0,87665.0,0.01140706]
[1766172030987,0.01369754,87678.0,87665.0,7.029e-05]
[1766172031206,0.01826167,87691.0,87670.0,0.57643641]
[1766172031471,0.01369754,87689.0,87670.0,0.21258]
[1766172031687,0.01369754,87689.0,87672.0,0.57643615]
[1766172031916,0.01369754,87689.0,87673.0,0.00576]
[1766172032363,0.01369754,87689.0,87679.0,0.01140523]
[1766172032608,0.2328,87696.0,87685.0,0.01140445]
[1766172032800,0.2328,87710.0,87685.0,0.56503]
[1766172032998,0.2328,87710.0,87692.0,0.01140354]
[1766172033133,0.2328,87710.0,87693.0,0.00576]
[1766172033673,0.28980641,87710.0,87693.0,0.00576]
[1766172033927,0.56933,87719.0,87693.0,0.00576]
[1766172033928,0.24419938,87724.0,87702.0,0.01140224]
[1766172034200,0.0171599,87720.0,87703.0,0.01716211]
[1766172034395,0.00576,87720.0,87705.0,0.01140185]
[1766172034601,0.00576,87720.0,87703.0,0.00576]
[1766172034805,0.001098,87705.0,87703.0,0.00576]
[1766172035011,0.05700298,87715.0,87703.0,0.00576]
[1766172035160,0.06840259,87716.0,87703.0,0.00576]
[1766172035161,0.01140068,87714.0,87703.0,0.00576]
[1766172035342,0.01140055,87715.0,87703.0,0.00576]
[1766172035563,0.01140068,87714.0,87703.0,0.00576]
[1766172035765,0.01140081,87713.0,87703.0,0.00576]
[1766172035974,0.01140081,87713.0,87693.0,0.05701706]
[1766172035975,0.001098,87703.0,87692.0,0.261]
[1766172036182,0.001098,87703.0,87692.0,0.2610826]
[1766172036382,0.001098,87703.0,87696.0,0.01140302]
[1766172036590,0.26512,87712.0,87693.0,0.27816341]
[1766172036798,0.33352589,87712.0,87693.0,0.26676]
[1766172037155,0.26512,87712.0,87693.0,0.26676]
[1766172037358,0.26512,87712.0,87694.0,0.01369754]
[1766172037541,0.26512,87712.0,87697.0,0.01140289]
[1766172037994,0.26512,87712.0,87698.0,0.00576]
[1766172038325,0.27652094,87712.0,87698.0,0.00576]
[1766172038528,0.26512,87712.0,87698.0,0.00576]
[1766172038728,0.00096686,87699.0,87698.0,0.00576]
[1766172038918,8.6e-07,87699.0,87698.0,0.00576]
[1766172039376,8.6e-07,87699.0,87694.0,0.01369754]
[1766172039552,0.33353199,87704.0,87694.0,0.00576]
[1766172039751,0.62228172,87706.0,87694.0,0.00576]
[1766172040137,0.27652211,87703.0,87694.0,0.00576]
[1766172040358,0.01140224,87702.0,87693.0,0.00576]
[1766172040620,0.00576,87708.0,87693.0,0.00576]
[1766172040847,0.00576,87708.0,87694.0,0.01369754]
[1766172042160,0.000966,87694.0,87692.0,8.26e-05]
[1766172042346,0.61088,87703.0,87692.0,0.0058426]
[1766172042848,0.61088,87703.0,87693.0,0.00576]
[1766172043380,0.62228211,87703.0,87693.0,0.00576]
[1766172043583,0.61088,87703.0,87693.0,0.00576]
[1766172043808,0.62228211,87703.0,87693.0,0.00576]
[1766172044018,0.61088,87703.0,87693.0,0.00576]
[1766172044613,0.26512,87702.0,87693.0,0.00576]
[1766172044815,0.26512,87702.0,87692.0,2.6e-06]
[1766172045491,0.61088,87700.0,87692.0,2.6e-06]
[1766172046360,0.01140263,87699.0,87692.0,2.6e-06]
[1766172046576,0.01140276,87698.0,87692.0,2.6e-06]
[1766172046964,0.01140263,87699.0,87692.0,2.6e-06]
[1766172047589,0.06841563,87700.0,87692.0,2.6e-06]
[1766172047793,0.01140276,87698.0,87692.0,2.6e-06]
[1766172048089,0.27652263,87699.0,87689.0,2.6e-06]
[1766172048267,0.26512,87699.0,87689.0,9.742e-05]
[1766172048445,0.26512,87699.0,87689.0,9.482e-05]
[1766172049056,0.32213712,87693.0,87676.0,0.01]
[1766172049309,0.33354189,87692.0,87677.0,0.00576]
[1766172049519,0.26512,87691.0,87677.0,0.00576]
[1766172049658,0.25512,87691.0,87677.0,0.00576]
[1766172050564,0.25512,87691.0,87678.0,0.00576]
[1766172051201,0.01140328,87694.0,87678.0,0.00576]
[1766172051621,0.06841981,87694.0,87678.0,0.00576]
[1766172052071,0.01140354,87692.0,87678.0,0.00576]
[1766172052287,0.06842089,87693.0,87676.0,0.01010787]
[1766172052487,0.26512,87693.0,87679.0,0.00576]
[1766172053045,0.05701342,87699.0,87693.0,0.001099]
[1766172053253,0.3221321,87701.0,87693.0,0.001099]
[1766172053457,0.0114025,87700.0,87686.0,0.00576]
[1766172053661,0.01140315,87695.0,87686.0,0.00576]
[1766172054036,0.01140315,87695.0,87620.0,0.40474272]
[1766172054037,0.01140432,87686.0,87676.0,0.00010787]
[1766172054432,0.26512,87684.0,87675.0,0.00576]
[1766172054659,0.26512,87684.0,87675.0,0.00586792]
[1766172055852,0.264021,87684.0,87675.0,0.00586792]
[1766172056658,0.01342228,87683.0,87675.0,0.00586792]
[1766172056832,0.01342228,87683.0,87669.0,0.04033831]
[1766172056833,0.001099,87675.0,87669.0,0.04033831]
[1766172057047,0.001099,87675.0,87669.0,0.00010792]
[1766172057263,0.01369754,87677.0,87669.0,0.00010792]
[1766172058086,0.01369754,87677.0,87650.0,1.18e-06]
[1766172058087,0.26512,87666.0,87650.0,1.18e-06]
[1766172058282,0.876,87666.0,87652.0,0.02140875]
[1766172058461,0.01716641,87670.0,87628.0,0.60703]
[1766172058462,0.000991,87652.0,87628.0,0.60703]
[1766172058639,0.000991,87652.0,87630.0,0.60703]
[1766172058640,0.01140927,87648.0,87630.0,0.60703]
[1766172058840,0.01140927,87648.0,87629.0,0.04564]
[1766172058841,0.62228914,87649.0,87631.0,0.00576]
[1766172059071,0.61088,87648.0,87632.0,0.01576]
[1766172059273,0.01342228,87647.0,87632.0,0.01576]
[1766172059487,0.01342228,87647.0,87636.0,0.01141083]
[1766172059699,0.01342228,87647.0,87636.0,0.05705394]
[1766172059859,0.01342228,87647.0,87637.0,0.0114107]
[1766172060066,0.01342228,87647.0,87636.0,0.01141083]
[1766172060265,0.01342228,87647.0,87635.0,0.261]
[1766172060467,0.01342228,87647.0,87635.0,0.26040068]
[1766172061124,0.01342228,87647.0,87636.0,0.01141083]
[1766172061343,0.01140732,87663.0,87644.0,0.01140979]
[1766172061544,0.01140719,87664.0,87645.0,0.61279]
[1766172061545,0.01716745,87662.0,87645.0,0.61279]
[1766172061744,0.01140771,87660.0,87645.0,0.61279]
[1766172062124,0.62228784,87659.0,87645.0,0.00576]
[1766172062320,0.01140836,87655.0,87645.0,0.004661]
[1766172062522,0.0684494,87656.0,87645.0,0.004661]
[1766172062721,0.01140836,87655.0,87645.0,0.004661]
[1766172062931,0.32216038,87658.0,87633.0,0.261]
[1766172062932,0.01140901,87650.0,87633.0,0.261]
[1766172063191,0.01140901,87650.0,87632.0,0.01]
[1766172063192,0.01140953,87646.0,87634.0,0.00576]
[1766172063314,0.61088,87646.0,87631.0,0.01]
[1766172063511,0.26512,87641.0,87628.0,0.0003611]
[1766172063753,0.00576,87650.0,87629.0,0.00576]
[1766172063953,0.61088,87660.0,87641.0,0.001099]
[1766172064160,0.01140875,87652.0,87641.0,0.001099]
[1766172064310,0.06845191,87653.0,87638.0,0.61279]
[1766172064706,0.06845191,87653.0,87632.0,0.05705617]
[1766172064707,0.01140992,87643.0,87624.0,0.01]
[1766172064919,0.91180966,87645.0,87632.0,0.00576]
[1766172065111,0.9004,87645.0,87632.0,0.00576]
[1766172065345,0.00576,87647.0,87637.0,0.0114107]
[1766172065569,0.00576,87656.0,87645.0,0.001099]
[1766172066046,0.00576,87656.0,87641.0,0.00576]
[1766172066405,0.00576,87656.0,87641.0,0.01717018]
[1766172066613,0.01716823,87656.0,87641.0,0.00576]
[1766172066802,0.05704246,87654.0,87641.0,0.00576]
[1766172067107,0.06845194,87653.0,87641.0,0.00576]
[1766172067275,0.01140836,87655.0,87641.0,0.00576]
[1766172067276,0.01140849,87654.0,87641.0,0.00576]
[1766172067481,0.068451,87654.0,87641.0,0.00576]
[1766172067688,0.6201,87656.0,87641.0,0.00576]
[1766172067893,0.28606,87676.0,87657.0,0.3255581]
[1766172068068,0.00576,87674.0,87659.0,0.01140784]
[1766172068391,0.01716589,87674.0,87657.0,0.91035]
[1766172068597,0.00576,87674.0,87657.0,0.91035]
[1766172069011,0.00581361,87674.0,87657.0,0.91035]
[1766172069548,0.06843624,87673.0,87657.0,0.91035]
[1766172069761,0.00581361,87674.0,87657.0,0.9217581]
[1766172069946,0.00581361,87674.0,87659.0,0.01140784]
[1766172070081,0.00581361,87674.0,87658.0,0.01140797]
[1766172070483,0.00581361,87674.0,87658.0,0.06844755]
[1766172070682,0.00581361,87674.0,87659.0,0.01140784]
[1766172070883,0.00581361,87674.0,87660.0,0.01140771]
[1766172071310,0.00581361,87674.0,87666.0,0.01369754]
[1766172071528,0.00024936,87707.0,87676.0,0.01140562]
[1766172071529,0.61434,87690.0,87676.0,0.01140562]
[1766172071739,5.352e-05,87690.0,87669.0,0.01140654]
[1766172071968,5.352e-05,87690.0,87673.0,0.01140602]
[1766172072174,0.61439352,87690.0,87670.0,0.33925395]
[1766172072397,0.90045352,87690.0,87675.0,0.01140575]
[1766172072619,0.90045352,87690.0,87674.0,0.01140589]
[1766172072818,0.90045352,87690.0,87676.0,0.01140562]
[1766172073270,0.28611352,87690.0,87674.0,0.01716589]
[1766172073713,0.28611352,87690.0,87677.0,0.01140549]
[1766172074159,0.28611352,87690.0,87678.0,0.01140536]
[1766172074381,0.28611352,87690.0,87680.0,0.0114051]
[1766172074583,0.28606,87703.0,87690.0,0.00109548]
[1766172074767,0.0114025,87700.0,87690.0,0.00010799]
[1766172075009,0.00576,87702.0,87690.0,0.00010799]
[1766172075216,0.00576,87702.0,87691.0,0.01140367]
[1766172075415,0.00576,87702.0,87690.0,0.00010799]
[1766172076309,0.00024936,87707.0,87691.0,0.90459]
[1766172076709,0.00024936,87707.0,87700.0,0.05701213]
[1766172077026,0.61434,87725.0,87710.0,0.05700561]
[1766172077293,0.04568,87743.0,87726.0,0.59044]
[1766172077484,0.03061735,87780.0,87747.0,0.0113964]
[1766172077685,0.61434,87768.0,87748.0,0.01715627]
[1766172077912,0.28606,87766.0,87750.0,0.00099999]
[1766172078143,0.0113938,87767.0,87750.0,0.012396]
[1766172078361,0.01139367,87768.0,87750.0,0.012396]
[1766172078362,0.01139367,87768.0,87750.0,0.00099999]
[1766172078582,0.00036127,87767.0,87751.0,0.904337]
[1766172078788,0.00036127,87767.0,87756.0,0.01369754]
[1766172078996,0.00036127,87767.0,87760.0,0.00099999]
[1766172079211,0.34827,87787.0,87772.0,0.01139315]
[1766172079414,0.00869819,87799.0,87787.0,0.000485]
[1766172079630,0.0113903,87794.0,87790.0,0.00099999]
[1766172079838,0.0113903,87794.0,87773.0,0.056965]
[1766172079839,0.05695474,87789.0,87788.0,0.00576]
[1766172080093,0.01139081,87790.0,87783.0,0.00576]
[1766172080299,0.00869819,87799.0,87772.0,0.00010799]
[1766172080498,0.91116,87787.0,87773.0,0.00576]
[1766172080699,0.01139146,87785.0,87774.0,0.00576]
[1766172080831,0.000846,87774.0,87772.0,0.00010799]
[1766172081031,0.000846,87774.0,87761.0,0.025701]
[1766172081032,0.01139289,87774.0,87761.0,0.025701]
[1766172081262,0.01139289,87774.0,87753.0,0.06837316]
[1766172081263,0.0514,87773.0,87740.0,0.90307]
[1766172081457,0.01139847,87731.0,87713.0,0.03422698]
[1766172081718,0.34827,87733.0,87713.0,0.03422698]
[1766172081719,0.02734124,87715.0,87713.0,0.03433505]
[1766172081998,0.01139951,87723.0,87700.0,0.0114025]
[1766172081999,0.03284824,87714.0,87700.0,0.0114025]
[1766172082212,0.03284824,87714.0,87700.0,0.00010812]
[1766172082656,0.01140172,87706.0,87700.0,0.00010812]
[1766172082889,0.34827,87702.0,87700.0,1.2e-07]
[1766172083106,1.01381189,87701.0,87700.0,1.2e-07]
[1766172083310,1.02381189,87701.0,87700.0,1.2e-07]
[1766172084293,1.02957189,87701.0,87700.0,1.2e-07]
[1766172084499,0.02508465,87706.0,87700.0,1.2e-07]
[1766172084500,0.01,87702.0,87700.0,1.2e-07]
[1766172084674,0.0514,87701.0,87700.0,1.2e-07]
[1766172086322,0.01140185,87705.0,87700.0,1.2e-07]
[1766172086323,0.01140094,87712.0,87701.0,0.000108]
[1766172086524,0.06840724,87710.0,87701.0,0.000108]
[1766172086729,0.01140198,87704.0,87701.0,0.000108]
[1766172086938,0.01140198,87704.0,87700.0,1.2e-07]
[1766172086939,0.01140211,87703.0,87700.0,1.2e-07]
[1766172087116,0.00576,87702.0,87700.0,1.2e-07]
[1766172087715,0.04564,87718.0,87704.0,0.01140198]
[1766172087916,0.01716029,87717.0,87700.0,0.33962012]
[1766172088120,0.00109888,87700.0,87687.0,0.01]
[1766172088324,0.00576,87699.0,87687.0,0.00010837]
[1766172088518,0.01716263,87699.0,87687.0,0.00010837]
[1766172088741,0.00576,87699.0,87687.0,0.00010837]
[1766172088934,0.00576,87699.0,87687.0,0.01151256]
[1766172089407,0.00576,87699.0,87688.0,0.01140406]
[1766172089580,0.00024939,87715.0,87699.0,0.01140263]
[1766172089783,0.00576,87714.0,87704.0,0.01140198]
[1766172090005,0.00576,87714.0,87713.0,0.01368293]
[1766172090560,0.00576,87714.0,87701.0,0.01140237]
[1766172090765,0.00576,87714.0,87705.0,0.05700875]
[1766172090964,0.00576,87713.0,87712.0,0.01368293]
[1766172091389,0.001099,87712.0,87699.0,0.57485263]
[1766172091590,0.001099,87712.0,87701.0,0.01140237]
[1766172091794,0.00576,87713.0,87700.0,0.33962]
[1766172091970,0.00576,87713.0,87698.0,0.01368293]
[1766172092179,0.00576,87713.0,87698.0,0.08209908]
[1766172092380,0.00576,87713.0,87701.0,0.01140237]
[1766172092587,0.00576,87713.0,87702.0,0.01140224]
[1766172092784,0.04564,87724.0,87712.0,0.01368293]
[1766172092988,0.0514,87724.0,87712.0,0.01368293]
[1766172093515,0.00576,87723.0,87712.0,0.01368293]
[1766172094896,0.00576,87722.0,87712.0,0.01368293]
[1766172095274,0.01715964,87722.0,87712.0,0.01368293]
[1766172095495,0.01140133,87709.0,87694.0,0.57044]
[1766172095856,0.00411489,87718.0,87705.0,0.57044]
[1766172096016,0.00411489,87718.0,87701.0,0.22804757]
[1766172096017,0.00576,87714.0,87706.0,0.36526]
[1766172096206,0.00411489,87718.0,87706.0,0.36526]
[1766172096416,0.00576,87717.0,87706.0,0.36526]
[1766172096767,0.00411489,87718.0,87706.0,0.36526]
[1766172096978,0.00411489,87718.0,87700.0,0.01368293]
[1766172096979,0.01551505,87718.0,87700.0,0.01368293]
[1766172097095,0.01551505,87718.0,87691.0,0.57044]
[1766172097096,0.05700728,87709.0,87692.0,0.01]
[1766172097298,0.00576,87708.0,87701.0,0.01368293]
[1766172097541,0.00576,87708.0,87691.0,0.57044]
[1766172097744,0.00576,87708.0,87697.0,0.01368293]
[1766172098344,0.01716146,87708.0,87690.0,0.00576]
[1766172098553,0.01716146,87708.0,87694.0,0.06841967]
[1766172098554,0.00576,87708.0,87694.0,0.06841967]
[1766172098741,0.00576,87708.0,87697.0,0.01368293]
[1766172099073,0.01140185,87705.0,87690.0,0.00576]
[1766172099289,0.00411489,87703.0,87687.0,0.00010837]
[1766172099486,0.01140367,87691.0,87687.0,0.00010837]
[1766172099692,0.00576,87690.0,87678.0,0.01140536]
[1766172099892,0.00576,87690.0,87678.0,0.00010839]
[1766172100116,0.0114038,87690.0,87678.0,0.00010839]
[1766172100325,0.00576,87689.0,87678.0,0.00010839]
[1766172100531,0.00576,87689.0,87678.0,0.05713512]
[1766172100741,0.004661,87689.0,87679.0,0.01140523]
[1766172101121,0.01140211,87703.0,87680.0,0.0114051]
[1766172101338,0.04081595,87741.0,87694.0,0.01140328]
[1766172101339,0.00576,87702.0,87694.0,0.01140328]
[1766172101540,0.04564,87715.0,87699.0,0.01140263]
[1766172101745,0.01716068,87714.0,87696.0,0.01140302]
[1766172101950,0.01140107,87711.0,87694.0,0.01140328]
[1766172102151,0.01140094,87712.0,87694.0,0.01140328]
[1766172102394,0.0114012,87710.0,87693.0,0.01140341]
[1766172102602,0.01140133,87709.0,87691.0,0.94710367]
[1766172102838,0.01140107,87711.0,87693.0,0.01140341]
[1766172103112,0.01140146,87708.0,87689.0,0.05701932]
[1766172103339,0.00576,87707.0,87691.0,0.01140367]
[1766172103617,0.00576,87707.0,87693.0,0.01140341]
[1766172104028,0.00576,87707.0,87687.0,0.01140419]
[1766172104029,0.01140172,87706.0,87687.0,0.01140419]
[1766172104411,0.06841036,87706.0,87688.0,0.01140406]
[1766172104630,0.001099,87688.0,87681.0,0.36526]
[1766172104847,0.001099,87688.0,87683.0,0.01140471]
[1766172105266,0.00576,87697.0,87681.0,0.06842924]
[1766172105464,0.00576,87697.0,87678.0,0.00586839]
[1766172105465,0.00576,87697.0,87678.0,0.01727375]
[1766172105737,0.00576,87697.0,87684.0,0.01140458]
[1766172105886,0.00411489,87705.0,87699.0,0.01140263]
[1766172106101,0.94676,87745.0,87730.0,0.0113986]
[1766172106271,0.05697778,87754.0,87745.0,0.01368293]
[1766172106477,0.06837327,87754.0,87737.0,0.01139769]
[1766172106681,0.94676,87757.0,87735.0,0.01368293]
[1766172106893,0.00576,87759.0,87750.0,0.01368293]
[1766172107221,0.0061216,87759.0,87746.0,0.01139653]
[1766172107423,0.01139614,87749.0,87735.0,0.0058]
[1766172107627,0.23401923,87759.0,87735.0,0.0058]
[1766172107628,0.01139653,87746.0,87735.0,0.0058]
[1766172107853,0.01139705,87742.0,87723.0,0.37665951]
[1766172108024,0.05698609,87741.0,87722.0,0.01139964]
[1766172108224,0.94676,87743.0,87725.0,0.01139925]
[1766172108405,0.94676,87743.0,87727.0,0.01139899]
[1766172108928,0.38166705,87742.0,87724.0,0.0058]
[1766172109108,0.05698677,87740.0,87724.0,0.0058]
[1766172109310,0.01,87741.0,87724.0,0.0058]
[1766172109509,0.01,87741.0,87725.0,0.01139925]
[1766172109761,0.01,87741.0,87717.0,0.0058]
[1766172109762,0.2279488,87739.0,87717.0,0.0058]
[1766172109968,0.94676,87729.0,87713.0,0.05700409]
[1766172110194,0.0058,87732.0,87724.0,0.01139938]
[1766172110322,0.0058,87732.0,87729.0,0.001099]
[1766172110519,0.0058,87732.0,87725.0,0.01139925]
[1766172110765,0.57649,87738.0,87725.0,0.01139925]
[1766172110766,0.37027,87739.0,87726.0,0.01139912]
[1766172111072,0.37063138,87739.0,87723.0,0.01139951]
[1766172111278,0.37063138,87739.0,87724.0,0.01139938]
[1766172111689,0.37063138,87739.0,87722.0,0.01139964]
[1766172111834,0.0003117,87725.0,87722.0,0.06839748]
[1766172112041,0.01139692,87743.0,87720.0,0.03088283]
[1766172112042,0.01139575,87752.0,87729.0,0.9357]
[1766172112240,0.01139575,87752.0,87734.0,0.01368293]
[1766172112495,0.01139601,87750.0,87734.0,0.01368293]
[1766172112660,0.01139588,87751.0,87734.0,0.02508101]
[1766172112994,0.01139575,87752.0,87735.0,0.01139795]
[1766172113196,0.01139601,87750.0,87734.0,0.01368293]
[1766172113341,0.01139601,87750.0,87730.0,0.23373218]
[1766172113342,0.37027,87750.0,87730.0,0.00576]
[1766172113542,0.01139731,87740.0,87729.0,0.00036138]
[1766172113784,0.05698614,87741.0,87729.0,0.00036138]
[1766172113785,0.000311,87730.0,87729.0,1.38e-06]
[1766172114152,0.01139769,87737.0,87729.0,1.38e-06]
[1766172114797,0.01139744,87739.0,87729.0,1.38e-06]
[1766172115007,0.06838516,87739.0,87729.0,1.38e-06]
[1766172115177,0.01139769,87737.0,87729.0,1.38e-06]
[1766172115394,0.01139795,87735.0,87729.0,1.38e-06]
[1766172115594,0.01139821,87733.0,87722.0,0.00576]
[1766172115811,0.01139834,87732.0,87722.0,0.00010839]
[1766172116071,0.01140016,87718.0,87699.0,0.57044]
[1766172116297,0.05700651,87710.0,87699.0,0.00010846]
[1766172116496,0.00576,87709.0,87699.0,0.00010846]
[1766172116684,0.01140146,87708.0,87691.0,0.00576]
[1766172117001,0.01140185,87705.0,87691.0,0.00586848]
[1766172117137,0.57649,87706.0,87691.0,0.00010848]
[1766172117342,0.57649,87715.0,87706.0,0.000788]
[1766172117552,0.00025001,87733.0,87691.0,0.01151215]
[1766172117553,0.01140133,87709.0,87691.0,0.01151215]
[1766172117763,0.01140133,87709.0,87691.0,0.00010848]
[1766172117985,0.01140159,87707.0,87691.0,0.00010848]
[1766172118306,0.0058,87706.0,87691.0,0.06853038]
[1766172118609,0.0058,87706.0,87691.0,0.00010848]
[1766172119180,0.01720172,87706.0,87691.0,0.00010848]
[1766172119381,0.0058,87706.0,87692.0,0.06842122]
[1766172119590,0.0058,87706.0,87694.0,0.01140328]
[1766172119797,0.0058,87706.0,87693.0,0.06842041]
[1766172119997,0.02508296,87719.0,87699.0,0.01140263]
[1766172120202,0.57649,87715.0,87697.0,0.05701434]
[1766172120408,0.57649,87715.0,87696.0,0.01140302]
[1766172120409,0.57649,87715.0,87701.0,0.01140237]
[1766172120606,0.64489379,87715.0,87695.0,0.05701555]
[1766172120867,0.64489379,87715.0,87697.0,0.01140289]
[1766172121088,0.0514,87718.0,87691.0,0.00010848]
[1766172121258,0.00576,87714.0,87703.0,0.0570104]
[1766172121482,0.01140081,87713.0,87699.0,0.36526]
[1766172121682,0.001099,87703.0,87695.0,0.01140315]
[1766172121882,0.001099,87703.0,87694.0,0.00576]
[1766172122110,0.57649,87712.0,87699.0,0.01140263]
[1766172122314,0.04564,87725.0,87704.0,0.01140198]
[1766172122586,0.00576,87724.0,87707.0,0.01140159]
[1766172122761,0.00576,87724.0,87706.0,0.01140172]
[1766172123005,0.00576,87724.0,87710.0,0.0114012]
[1766172123195,0.01139847,87731.0,87710.0,0.0114012]
[1766172123196,0.57649,87744.0,87727.0,0.01139899]
[1766172123371,0.01139692,87743.0,87732.0,0.01368293]
[1766172123568,0.57649,87744.0,87732.0,0.01368293]
[1766172123766,0.00576,87745.0,87732.0,0.01368293]
[1766172124156,0.0569859,87741.0,87732.0,0.01368293]
[1766172124353,0.01139731,87740.0,87732.0,0.01368293]
[1766172124615,0.01139731,87740.0,87721.0,0.9357]